bitfinex/quotes_SOLUSD_20250602
["timestamp","ask_amount","ask_price","bid_price","bid_amount"]
[1748825251727,39.26,157.69,157.62,20.51193267]
[1748825252025,14.16756013,157.68,157.63,14.16756013]
[1748825253548,14.16756013,157.69,157.65,14.16756013]
[1748825253775,14.16756013,157.69,157.64,14.16756013]
[1748825254650,14.16756013,157.68,157.64,14.16756013]
[1748825254849,14.16756013,157.67,157.63,14.16756013]
[1748825255333,14.16756013,157.67,157.62,20.51193267]
[1748825256134,14.16756013,157.67,157.63,14.16756013]
[1748825257134,14.16756013,157.68,157.63,14.16756013]
[1748825257532,14.16756013,157.68,157.64,6.34356762]
[1748825258756,148.9,157.67,157.64,6.34356762]
[1748825261834,163.06756013,157.67,157.63,6.34386055]
[1748825262038,14.16756013,157.64,157.6,6.34505607]
[1748825262656,14.16756013,157.63,157.6,6.34505607]
[1748825263662,14.16756013,157.62,157.59,6.34548645]
[1748825263835,150.5383,157.64,157.57,6.34622975]
[1748825263836,14.16756013,157.61,157.57,6.34622975]
[1748825267633,14.16756013,157.59,157.57,6.34622975]
[1748825267837,163.06756013,157.58,157.52,6.3484002]
[1748825268038,14.16756013,157.55,157.52,6.3484002]
[1748825268659,14.16756013,157.55,157.51,6.34880325]
[1748825268845,14.16756013,157.54,157.51,6.34880325]
[1748825270461,14.16756013,157.53,157.49,6.34960949]
[1748825270763,24.48756013,157.53,157.49,32.34960949]
[1748825271063,24.48756013,157.53,157.49,6.34960949]
[1748825271064,14.16756013,157.52,157.49,6.34960949]
[1748825272666,14.16756013,157.52,157.48,6.3500127]
[1748825274870,24.48756013,157.53,157.48,20.51757283]
[1748825275255,24.48756013,157.53,157.49,14.16756013]
[1748825275256,10.32,157.53,157.49,14.16756013]
[1748825276057,10.32,157.53,157.51,14.16756013]
[1748825276964,10.32,157.53,157.52,6.3484002]
[1748825277146,10.32,157.53,157.52,20.51596033]
[1748825277345,148.9,157.55,157.52,36.38696083]
[1748825277546,148.9,157.55,157.54,14.16756013]
[1748825279171,148.9,157.55,157.54,20.51515439]
[1748825279488,148.9,157.55,157.54,6.34759426]
[1748825281671,148.9,157.55,157.53,6.3479972]
[1748825283381,148.9,157.55,157.53,20.51555733]
[1748825286661,148.9,157.55,157.54,14.16756013]
[1748825287853,10.32,157.57,157.54,14.16756013]
[1748825288065,10.32,157.57,157.56,14.16756013]
[1748825288262,10.32,157.57,157.53,87.47799021]
[1748825288263,10.32,157.57,157.55,14.16756013]
[1748825288463,10.32,157.57,157.53,87.47799021]
[1748825288665,10.32,157.57,157.55,6.34719136]
[1748825288965,10.32,157.57,157.54,6.34755159]
[1748825289545,24.48756013,157.57,157.54,6.34755159]
[1748825289953,10.32,157.57,157.54,6.34755159]
[1748825290362,24.48756013,157.57,157.54,6.34755159]
[1748825290953,24.48756013,157.57,157.53,6.3479972]
[1748825296676,10.32,157.57,157.53,14.16756013]
[1748825297091,159.22,157.57,157.54,14.16756013]
[1748825298449,159.22,157.57,157.55,20.51475149]
[1748825298862,10.32,157.57,157.55,20.51475149]
[1748825299065,10.32,157.57,157.56,14.16756013]
[1748825300489,10.32,157.57,157.56,20.51434865]
[1748825301171,10.32,157.57,157.56,6.34678852]
[1748825302549,10.3,157.61,157.56,36.38131996]
[1748825302884,10.3,157.61,157.58,14.16756013]
[1748825303176,10.3,157.61,157.56,6.34678852]
[1748825303177,24.46756013,157.61,157.56,6.34678852]
[1748825303361,24.46756013,157.61,157.55,6.34704983]
[1748825303362,14.16756013,157.59,157.55,6.34704983]
[1748825303958,10.3,157.61,157.55,6.34704983]
[1748825303959,14.16756013,157.6,157.55,20.51460996]
[1748825304158,24.46756013,157.61,157.56,14.16756013]
[1748825304362,14.16756013,157.6,157.55,20.51460996]
[1748825304554,14.16756013,157.6,157.55,6.34704983]
[1748825304762,14.16756013,157.6,157.56,14.16756013]
[1748825304977,14.16756013,157.6,157.55,20.51460996]
[1748825305964,148.9,157.59,157.55,20.51460996]
[1748825306169,148.9,157.59,157.57,14.16756013]
[1748825306374,15.70946013,157.62,157.58,14.16756013]
[1748825306375,10.3,157.6,157.58,14.16756013]
[1748825306677,10.3,157.6,157.59,14.16756013]
[1748825308079,10.3,157.6,157.59,20.51314043]
[1748825308280,10.3,157.6,157.59,6.3455803]
[1748825308966,10.3,157.6,157.59,20.51314043]
[1748825310691,10.3,157.6,157.59,6.3455803]
[1748825311191,10.3,157.6,157.59,20.51314043]
[1748825312494,158.40144954,157.63,157.59,36.37709118]
[1748825312674,158.40144954,157.63,157.61,14.16756013]
[1748825313000,101.68,157.64,157.62,14.16756013]
[1748825313179,10.3,157.64,157.63,14.16756013]
[1748825313493,1.548,157.7,157.63,14.16756013]
[1748825313494,10.3,157.68,157.63,14.16756013]
[1748825313691,11.848,157.7,157.66,14.16756013]
[1748825314005,10.3,157.7,157.69,14.16756013]
[1748825315574,148.9,157.73,157.69,14.16756013]
[1748825315909,101.66,157.74,157.71,14.16756013]
[1748825316073,101.66,157.74,157.71,20.5081614]
[1748825316811,101.66,157.74,157.7,14.16756013]
[1748825317303,14.16756013,157.72,157.68,6.34189528]
[1748825317595,14.16756013,157.72,157.67,20.50981741]
[1748825317997,14.16756013,157.71,157.64,65.24]
[1748825318301,14.16756013,157.71,157.66,14.16756013]
[1748825318482,14.16756013,157.71,157.64,65.24]
[1748825318684,14.16756013,157.71,157.66,14.16756013]
[1748825319187,20.50834261,157.71,157.66,14.16756013]
[1748825319699,14.16756013,157.71,157.66,20.51021833]
[1748825320405,20.50839237,157.71,157.66,20.51021833]
[1748825320902,148.9,157.7,157.66,20.51021833]
[1748825323695,148.9,157.7,157.67,14.16756013]
[1748825324599,148.9,157.7,157.69,14.16756013]
[1748825325703,148.9,157.7,157.69,20.50911634]
[1748825326597,148.9,157.7,157.69,6.34155621]
[1748825327596,148.9,157.7,157.69,20.50911634]
[1748825334705,148.9,157.7,157.68,6.34189833]
[1748825336034,173.34756013,157.7,157.65,14.16756013]
[1748825336188,159.18,157.7,157.67,14.16756013]
[1748825337311,159.18,157.7,157.69,14.16756013]
[1748825339317,159.18,157.7,157.69,20.50911634]
[1748825340497,159.18,157.7,157.65,6.34316523]
[1748825340693,173.34756013,157.7,157.66,14.16756013]
[1748825341295,173.34756013,157.7,157.66,20.51017993]
[1748825341824,159.18,157.7,157.66,6.3426198]
[1748825342121,159.18,157.7,157.67,14.16756013]
[1748825342497,159.18,157.7,157.63,39.2]
[1748825342498,14.16756013,157.68,157.63,14.16756013]
[1748825342824,14.16756013,157.67,157.62,20.51193267]
[1748825344404,14.16756013,157.65,157.61,6.34464758]
[1748825344822,10.3,157.64,157.61,20.51220771]
[1748825345722,10.3,157.64,157.63,14.16756013]
[1748825346109,10.3,157.64,157.62,14.16756013]
[1748825346301,10.3,157.64,157.61,20.51220771]
[1748825346702,10.3,157.64,157.62,14.16756013]
[1748825347031,10.3,157.64,157.63,14.16756013]
[1748825347724,39.2,157.68,157.63,14.16756013]
[1748825347725,10.28,157.68,157.64,22.20248667]
[1748825347914,10.28,157.68,157.65,14.16756013]
[1748825348101,24.44756013,157.68,157.64,20.51112775]
[1748825348716,10.28,157.68,157.64,20.51112775]
[1748825349909,10.28,157.68,157.64,6.34356762]
[1748825350233,10.28,157.68,157.64,20.51112775]
[1748825351022,24.44756013,157.68,157.64,6.34356762]
[1748825351932,14.16756013,157.67,157.6,15.86222463]
[1748825352234,16.62203323,157.68,157.64,14.16756013]
[1748825352235,49.48,157.68,157.64,14.16756013]
[1748825352429,10.28,157.68,157.65,14.16756013]
[1748825354222,10.28,157.68,157.67,14.16756013]
[1748825354414,10.28,157.72,157.67,14.16756013]
[1748825354613,10.28,157.72,157.66,48.19967016]
[1748825354815,10.28,157.72,157.67,14.16756013]
[1748825355212,10.28,157.72,157.68,14.16756013]
[1748825355538,10.28,157.72,157.69,14.16756013]
[1748825355739,24.44756013,157.72,157.67,14.16756013]
[1748825356032,14.16756013,157.71,157.66,46.51032303]
[1748825357031,14.16756013,157.71,157.66,14.16756013]
[1748825358530,14.16756013,157.7,157.65,14.16756013]
[1748825358730,14.16756013,157.67,157.63,6.34384489]
[1748825359031,14.16756013,157.68,157.63,20.51140502]
[1748825359939,14.16756013,157.67,157.62,32.34423143]
[1748825360127,14.16756013,157.67,157.63,14.16756013]
[1748825361042,148.9,157.69,157.64,14.16756013]
[1748825361250,163.06756013,157.69,157.64,14.16756013]
[1748825362026,14.16756013,157.68,157.63,20.51138202]
[1748825362746,14.16756013,157.68,157.64,14.16756013]
[1748825363060,14.16756013,157.68,157.64,20.51103286]
[1748825363446,14.16756013,157.68,157.63,20.51146732]
[1748825365136,148.9,157.67,157.63,20.51146732]
[1748825368866,159.18,157.67,157.63,20.51146732]
[1748825369662,159.18,157.67,157.66,14.16756013]
[1748825369663,10.28,157.67,157.66,14.16756013]
[1748825369864,159.18,157.71,157.66,14.16756013]
[1748825370156,173.34756013,157.71,157.66,14.16756013]
[1748825371359,14.16756013,157.7,157.65,14.16756013]
[1748825371573,14.16756013,157.7,157.66,6.3427629]
[1748825372954,14.16756013,157.69,157.65,6.34307055]
[1748825373139,14.16756013,157.68,157.65,6.34307055]
[1748825373337,14.16756013,157.69,157.65,6.34307055]
[1748825373538,14.16756013,157.69,157.64,59.71098419]
[1748825373913,14.16756013,157.69,157.64,20.51098419]
[1748825374154,14.16756013,157.68,157.63,46.51138913]
[1748825374958,39.2,157.7,157.63,46.51138913]
[1748825374959,39.2,157.7,157.65,14.16756013]
[1748825375161,159.18,157.71,157.63,32.343829]
[1748825375162,173.34756013,157.71,157.66,14.16756013]
[1748825375361,159.18,157.71,157.67,14.16756013]
[1748825376154,159.18,157.71,157.68,6.34195839]
[1748825376345,173.34756013,157.71,157.67,6.34220615]
[1748825377257,159.18,157.71,157.67,20.50976628]
[1748825377558,159.18,157.71,157.69,14.16756013]
[1748825377773,159.18,157.71,157.7,14.16756013]
[1748825377969,10.28,157.71,157.7,14.16756013]
[1748825378153,10.28,157.71,157.7,20.50871422]
[1748825379669,148.9,157.75,157.7,20.50871422]
[1748825379670,159.18,157.75,157.7,20.50871422]
[1748825379875,159.18,157.75,157.71,14.16756013]
[1748825380371,159.18,157.75,157.71,20.50828232]
[1748825380563,173.34756013,157.75,157.71,6.34072219]
[1748825381077,179.68672229,157.75,157.7,14.16756013]
[1748825381406,14.16756013,157.72,157.67,20.5097688]
[1748825382257,14.16756013,157.73,157.68,20.50931548]
[1748825382871,148.9,157.72,157.68,20.50931548]
[1748825383481,148.9,157.72,157.69,14.16756013]
[1748825383693,148.9,157.72,157.7,14.16756013]
[1748825383982,148.9,157.72,157.69,14.16756013]
[1748825384351,148.9,157.72,157.69,20.50884246]
[1748825387166,148.9,157.72,157.7,14.16756013]
[1748825387674,148.9,157.72,157.69,20.50884246]
[1748825388860,148.9,157.72,157.68,59.68936159]
[1748825389058,148.9,157.72,157.68,20.50936159]
[1748825391167,148.9,157.72,157.69,14.16756013]
[1748825392889,159.16,157.72,157.69,14.16756013]
[1748825395159,159.16,157.72,157.69,20.50910831]
[1748825395672,159.16,157.72,157.69,14.16756013]
[1748825395888,159.16,157.72,157.71,14.16756013]
[1748825396878,159.16,157.72,157.71,20.50831214]
[1748825397583,10.26,157.76,157.71,20.50831214]
[1748825397884,10.26,157.76,157.73,14.16756013]
[1748825399295,10.26,157.76,157.7,20.50871422]
[1748825399296,14.16756013,157.75,157.7,20.50871422]
[1748825399692,14.16756013,157.73,157.69,26.0]
[1748825400066,14.16756013,157.73,157.69,46.5089739]
[1748825400470,14.16756013,157.74,157.69,46.5089739]
[1748825400693,14.16756013,157.73,157.69,46.5089739]
[1748825400986,14.16756013,157.74,157.69,46.5089739]
[1748825401584,14.16756013,157.75,157.7,14.16756013]
[1748825401766,14.16756013,157.74,157.69,46.5089739]
[1748825401974,14.16756013,157.73,157.69,26.0]
[1748825402171,14.16756013,157.72,157.68,6.34189919]
[1748825402493,14.16756013,157.73,157.68,20.50945932]
[1748825403291,14.16756013,157.74,157.69,20.50884133]
[1748825403596,173.32756013,157.76,157.7,14.16756013]
[1748825404097,14.16756013,157.74,157.69,20.50884133]
[1748825405488,14.16756013,157.74,157.69,6.3412812]
[1748825405791,14.16756013,157.73,157.69,6.3412812]
[1748825409773,24.42756013,157.73,157.69,6.3412812]
[1748825410585,24.42756013,157.73,157.68,14.16756013]
[1748825410586,10.26,157.73,157.66,32.81720899]
[1748825410790,159.16,157.74,157.7,14.16756013]
[1748825412798,14.16756013,157.73,157.69,6.3414153]
[1748825412985,159.16,157.74,157.69,20.50897543]
[1748825413184,159.16,157.74,157.7,14.16756013]
[1748825414503,159.16,157.74,157.69,61.35530584]
[1748825414685,159.16,157.74,157.73,6.33994801]
[1748825415000,10.26,157.74,157.73,6.33994801]
[1748825415811,10.26,157.74,157.73,20.50750814]
[1748825416484,10.26,157.74,157.73,6.33994801]
[1748825418886,10.26,157.74,157.72,6.34034998]
[1748825420192,10.26,157.74,157.72,14.16756013]
[1748825422711,24.42756013,157.74,157.7,6.34104677]
[1748825422889,10.26,157.74,157.71,14.16756013]
[1748825423497,10.26,157.74,157.7,20.5086069]
[1748825424008,14.16756013,157.73,157.68,20.50951852]
[1748825424206,10.26,157.74,157.71,14.16756013]
[1748825424798,10.26,157.74,157.7,20.50871422]
[1748825426211,10.26,157.74,157.71,14.16756013]
[1748825426784,10.26,157.74,157.71,20.50797163]
[1748825428302,10.26,157.74,157.71,6.3404115]
[1748825428909,10.26,157.74,157.7,30.02044535]
[1748825428910,10.26,157.74,157.7,6.34115409]
[1748825429601,14.16756013,157.71,157.68,32.34181732]
[1748825429798,14.16756013,157.72,157.68,32.34181732]
[1748825429991,14.16756013,157.73,157.68,46.50937745]
[1748825430184,163.06756013,157.73,157.68,46.50937745]
[1748825430382,10.26,157.74,157.7,14.16756013]
[1748825430797,10.26,157.74,157.71,14.16756013]
[1748825431189,10.26,157.74,157.72,6.34034998]
[1748825432787,10.26,157.74,157.71,6.34075201]
[1748825433299,10.26,157.74,157.71,20.50831214]
[1748825434010,10.26,157.74,157.73,14.16756013]
[1748825434214,1.555,157.77,157.73,14.16756013]
[1748825435096,1.555,157.77,157.74,6.33954608]
[1748825436005,1.555,157.77,157.74,20.50710621]
[1748825436592,1.555,157.77,157.74,6.33954608]
[1748825437111,10.26,157.79,157.74,36.35597143]
[1748825437408,14.16756013,157.78,157.73,6.3398223]
[1748825437587,14.16756013,157.77,157.73,6.3398223]
[1748825437790,14.16756013,157.76,157.73,6.3398223]
[1748825438013,10.26,157.79,157.73,6.3398223]
[1748825438014,14.16756013,157.77,157.73,6.3398223]
[1748825438912,14.16756013,157.76,157.72,32.34025116]
[1748825439917,10.26,157.79,157.72,46.50781129]
[1748825440115,14.16756013,157.77,157.72,46.50781129]
[1748825440296,10.26,157.79,157.72,46.50781129]
[1748825440494,14.16756013,157.77,157.72,46.50781129]
[1748825440907,14.16756013,157.76,157.72,6.34025116]
[1748825441099,14.16756013,157.77,157.72,20.50781129]
[1748825441304,24.42756013,157.79,157.74,14.16756013]
[1748825442624,24.42756013,157.79,157.75,6.33914421]
[1748825444399,24.42756013,157.79,157.74,6.33954608]
[1748825444598,24.42756013,157.79,157.74,20.50710621]
[1748825448229,24.42756013,157.79,157.74,6.33954608]
[1748825450128,24.42756013,157.79,157.74,20.50710621]
[1748825450311,10.26,157.79,157.75,14.16756013]
[1748825451328,10.26,157.79,157.74,36.35597143]
[1748825451831,10.26,157.79,157.74,22.1884113]
[1748825452035,10.26,157.79,157.74,36.35597143]
[1748825453208,10.26,157.79,157.74,20.50710621]
[1748825453434,24.42756013,157.79,157.74,20.50710621]
[1748825455130,14.16756013,157.78,157.74,6.33954608]
[1748825460632,10.26,157.79,157.75,14.16756013]
[1748825460831,10.26,157.79,157.76,14.16756013]
[1748825461212,10.26,157.79,157.78,14.16756013]
[1748825461407,15.61133188,157.83,157.78,14.16756013]
[1748825461408,10.24,157.83,157.78,14.16756013]
[1748825461631,10.24,157.83,157.8,14.16756013]
[1748825461820,10.24,157.83,157.79,14.16756013]
[1748825462127,10.24,157.83,157.82,14.16756013]
[1748825462445,155.23354109,157.89,157.83,24.98557992]
[1748825462446,1.5374,157.89,157.83,24.98557992]
[1748825462624,1.5374,157.89,157.86,14.16756013]
[1748825464632,1.5374,157.89,157.86,20.5022098]
[1748825464813,24.40756013,157.91,157.86,20.5022098]
[1748825465242,10.24,157.91,157.86,20.5022098]
[1748825465418,10.24,157.91,157.88,14.16756013]
[1748825468237,10.24,157.91,157.88,20.50146171]
[1748825468436,10.24,157.91,157.88,14.16756013]
[1748825469224,10.24,157.91,157.88,20.50145766]
[1748825471825,10.24,157.91,157.88,14.16756013]
[1748825472347,10.24,157.91,157.88,20.50134102]
[1748825473351,10.24,157.91,157.88,14.16756013]
[1748825474254,10.24,157.91,157.88,20.50143762]
[1748825475752,148.9,157.94,157.9,14.16756013]
[1748825475925,10.24,157.95,157.93,14.16756013]
[1748825476127,248.49333333,157.98,157.94,14.16756013]
[1748825476342,99.59333333,157.98,157.94,14.16756013]
[1748825476835,99.59333333,157.98,157.95,6.33111744]
[1748825477426,99.59333333,157.98,157.95,20.49867757]
[1748825477846,99.59333333,157.98,157.95,14.16756013]
[1748825478050,8.33333333,157.98,157.95,14.16756013]
[1748825478253,14.16756013,157.97,157.92,26.0]
[1748825478429,14.16756013,157.97,157.92,40.16756013]
[1748825479123,20.49820043,157.97,157.92,40.16756013]
[1748825479348,14.16756013,157.97,157.92,46.49983072]
[1748825479541,14.66336549,157.98,157.93,14.16756013]
[1748825479542,28.83092562,157.98,157.93,14.16756013]
[1748825479849,22.50089346,157.98,157.94,14.16756013]
[1748825483539,8.33333333,157.98,157.94,14.16756013]
[1748825485763,14.66338745,157.98,157.94,14.16756013]
[1748825485933,8.33333333,157.98,157.94,14.16756013]
[1748825486940,30.73716544,157.99,157.94,14.16756013]
[1748825488645,14.16756013,157.98,157.92,26.0]
[1748825488855,14.16756013,157.96,157.92,26.0]
[1748825489056,14.16756013,157.96,157.92,46.49962512]
[1748825489258,14.16756013,157.96,157.84,104.81178327]
[1748825489259,14.16756013,157.95,157.85,15.83704924]
[1748825489452,14.16756013,157.94,157.9,26.0]
[1748825489640,14.16756013,157.93,157.88,14.16756013]
[1748825489845,14.16756013,157.92,157.88,14.16756013]
[1748825490455,14.16756013,157.92,157.88,20.50147613]
[1748825491660,14.16756013,157.92,157.83,6.33593106]
[1748825491661,14.16756013,157.89,157.83,6.33593106]
[1748825491866,14.16756013,157.87,157.83,6.33593106]
[1748825492744,14.16756013,157.85,157.81,14.16756013]
[1748825494025,14.16756013,157.85,157.81,20.5039212]
[1748825494183,14.16756013,157.85,157.8,46.50458945]
[1748825495486,14.16756013,157.86,157.81,14.16756013]
[1748825495850,14.16756013,157.85,157.81,20.50428543]
[1748825499155,165.45435806,157.87,157.8,32.33707331]
[1748825499156,14.16756013,157.83,157.8,32.33707331]
[1748825499365,14.16756013,157.83,157.8,6.33707331]
[1748825499569,14.16756013,157.84,157.8,6.33707331]
[1748825500189,163.06756013,157.85,157.8,20.50463344]
[1748825500383,148.9,157.85,157.81,14.16756013]
[1748825501158,148.9,157.85,157.82,14.16756013]
[1748825502373,10.22,157.87,157.84,14.16756013]
[1748825502680,10.22,157.87,157.85,14.16756013]
[1748825503457,10.22,157.87,157.86,6.33472697]
[1748825504082,10.22,157.87,157.85,6.33501381]
[1748825504378,24.38756013,157.87,157.84,6.33547147]
[1748825504795,24.38756013,157.87,157.82,6.33633253]
[1748825504975,14.16756013,157.85,157.82,6.33633253]
[1748825507076,14.16756013,157.85,157.81,20.50420327]
[1748825507274,14.16756013,157.85,157.81,6.33664314]
[1748825507570,14.16756013,157.86,157.81,20.50420327]
[1748825508887,24.38756013,157.87,157.82,14.16756013]
[1748825509868,10.22,157.87,157.82,14.16756013]
[1748825510058,24.38756013,157.87,157.83,6.33593106]
[1748825510261,10.22,157.87,157.83,20.50349119]
[1748825512786,24.38756013,157.87,157.83,6.33593106]
[1748825513565,14.16756013,157.84,157.81,6.33673404]
[1748825513982,14.16756013,157.85,157.81,6.33673404]
[1748825514499,14.16756013,157.84,157.81,6.33673404]
[1748825515502,14.16756013,157.82,157.78,6.3379389]
[1748825517169,14.16756013,157.83,157.78,20.50549903]
[1748825517986,14.16756013,157.81,157.76,6.33874239]
[1748825518300,14.16756013,157.78,157.76,6.33874239]
[1748825518592,14.16756013,157.79,157.76,6.33874239]
[1748825519175,14.16756013,157.79,157.75,6.33914421]
[1748825520084,14.16756013,157.77,157.75,6.33914421]
[1748825520292,14.16756013,157.78,157.75,6.33914421]
[1748825521084,1.5702,157.8,157.76,14.16756013]
[1748825521285,15.73776013,157.8,157.75,20.50670434]
[1748825521513,14.16756013,157.79,157.75,6.33914421]
[1748825523512,1.5702,157.8,157.75,6.33914421]
[1748825523513,1.5702,157.8,157.75,20.50670434]
[1748825523713,15.73776013,157.8,157.75,20.50670434]
[1748825524623,10.22,157.81,157.77,14.16756013]
[1748825525288,10.22,157.81,157.78,6.3379389]
[1748825525484,10.22,157.81,157.8,14.16756013]
[1748825526013,10.22,157.81,157.79,14.16756013]
[1748825526811,10.22,157.81,157.8,6.33713561]
[1748825527394,10.22,157.81,157.79,6.33739266]
[1748825528212,10.22,157.81,157.79,20.50495279]
[1748825528714,10.22,157.85,157.8,40.16756013]
[1748825528921,10.22,157.89,157.84,20.50308978]
[1748825529210,148.9,157.91,157.88,14.16756013]
[1748825529411,1.5796,157.92,157.88,14.16756013]
[1748825529600,1.5796,157.92,157.89,14.16756013]
[1748825530008,1.5796,157.92,157.88,14.16756013]
[1748825530716,15.74716013,157.92,157.87,14.16756013]
[1748825530914,15.74716013,157.92,157.87,46.50158974]
[1748825531121,15.74716013,157.92,157.87,20.50158974]
[1748825532317,15.74716013,157.92,157.8,6.4786]
[1748825532318,14.16756013,157.89,157.81,15.84124005]
[1748825532611,14.16756013,157.89,157.84,40.16756013]
[1748825533006,14.16756013,157.89,157.84,46.50295327]
[1748825533319,14.16756013,157.89,157.84,20.50295327]
[1748825534704,14.16756013,157.9,157.85,14.16756013]
[1748825535589,14.16756013,157.9,157.85,20.50238999]
[1748825537388,163.06756013,157.91,157.87,14.16756013]
[1748825537717,163.06756013,157.91,157.84,26.0]
[1748825537718,163.06756013,157.91,157.86,20.50217964]
[1748825538210,14.16756013,157.89,157.85,6.33507699]
[1748825538798,24.38756013,157.89,157.84,46.5029703]
[1748825538997,24.38756013,157.89,157.85,14.16756013]
[1748825539211,24.38756013,157.89,157.84,46.5029703]
[1748825539723,10.22,157.89,157.85,14.16756013]
[1748825539888,10.22,157.89,157.86,20.5022871]
[1748825540087,10.22,157.89,157.86,6.33472697]
[1748825540291,10.22,157.89,157.86,20.5022871]
[1748825541110,10.22,157.89,157.87,14.16756013]
[1748825541915,10.22,157.89,157.88,6.33392449]
[1748825542114,10.22,157.89,157.88,20.50148462]
[1748825543198,10.22,157.89,157.88,6.33392449]
[1748825544297,10.22,157.89,157.88,14.16756013]
[1748825544697,10.22,157.89,157.86,6.33472697]
[1748825546924,10.22,157.89,157.86,14.16756013]
[1748825548030,10.22,157.89,157.87,14.16756013]
[1748825548233,10.22,157.89,157.88,14.16756013]
[1748825549818,10.22,157.89,157.88,20.50148462]
[1748825550126,10.22,157.89,157.88,6.33392449]
[1748825551335,10.22,157.89,157.87,20.50184073]
[1748825551510,10.22,157.89,157.87,6.3342806]
[1748825553725,10.22,157.89,157.88,14.16756013]
[1748825554647,10.22,157.89,157.88,20.50148462]
[1748825557925,148.9,157.91,157.88,20.50148462]
[1748825560643,148.9,157.91,157.87,20.50173316]
[1748825560948,148.9,157.91,157.87,6.33417303]
[1748825561134,148.9,157.91,157.87,20.50173316]
[1748825561586,163.06756013,157.91,157.87,6.33417303]
[1748825561928,148.9,157.91,157.87,20.50173316]
[1748825562356,148.9,157.9,157.84,39.04]
[1748825562567,163.06756013,157.9,157.83,6.33593106]
[1748825562755,14.16756013,157.89,157.8,25.12824886]
[1748825562935,163.06756013,157.89,157.84,14.16756013]
[1748825563870,1.6173,157.97,157.91,26.0]
[1748825564078,1.6173,157.97,157.92,14.16756013]
[1748825564359,15.78486013,157.97,157.92,14.16756013]
[1748825564761,15.78486013,157.97,157.92,20.49955055]
[1748825565060,14.16756013,157.96,157.92,20.49955055]
[1748825566263,14.16756013,157.95,157.9,6.33312222]
[1748825566452,24.36756013,157.94,157.9,6.33312222]
[1748825566649,14.16756013,157.93,157.9,6.33312222]
[1748825567258,14.16756013,157.93,157.89,6.33344405]
[1748825568161,24.36756013,157.94,157.89,20.50100418]
[1748825572257,24.36756013,157.94,157.85,30.00461662]
[1748825572258,14.16756013,157.9,157.85,30.00461662]
[1748825572456,14.16756013,157.9,157.85,56.00461662]
[1748825572963,14.16756013,157.91,157.86,14.16756013]
[1748825573163,14.16756013,157.91,157.86,20.50193729]
[1748825574747,14.16756013,157.88,157.85,32.33500851]
[1748825574965,24.36756013,157.88,157.84,6.33546376]
[1748825575272,24.36756013,157.88,157.83,20.50339402]
[1748825575480,14.16756013,157.87,157.82,14.16756013]
[1748825575669,14.16756013,157.87,157.82,40.16756013]
[1748825576053,24.36756013,157.88,157.83,14.16756013]
[1748825576251,24.36756013,157.88,157.84,14.16756013]
[1748825577974,24.36756013,157.88,157.84,20.50303823]
[1748825578847,10.2,157.88,157.85,14.16756013]
[1748825579101,10.2,157.88,157.86,14.16756013]
[1748825579373,10.2,157.9,157.87,14.16756013]
[1748825579564,24.36756013,157.9,157.85,40.16756013]
[1748825579756,14.16756013,157.89,157.85,26.0]
[1748825580969,14.16756013,157.88,157.83,20.50349119]
[1748825582593,14.16756013,157.88,157.84,14.16756013]
[1748825583090,14.16756013,157.85,157.8,6.33713561]
[1748825583403,148.9,157.87,157.8,6.33713561]
[1748825583404,24.36756013,157.84,157.8,20.50469574]
[1748825584690,14.16756013,157.83,157.78,20.50536415]
[1748825585971,169.40353035,157.83,157.78,20.50536415]
[1748825587076,169.40353035,157.83,157.72,34.49968323]
[1748825587077,14.16756013,157.82,157.72,34.49968323]
[1748825587403,14.16756013,157.81,157.76,14.16756013]
[1748825587899,14.16756013,157.8,157.73,6.33994801]
[1748825588103,14.16756013,157.79,157.75,14.16756013]
[1748825588301,10.2,157.78,157.75,20.5065805]
[1748825588481,10.2,157.78,157.75,6.33902037]
[1748825588682,10.2,157.78,157.75,20.5065805]
[1748825588906,10.2,157.78,157.76,14.16756013]
[1748825591204,10.2,157.78,157.76,20.50625293]
[1748825593416,10.2,157.78,157.77,14.16756013]
[1748825593578,148.9,157.8,157.77,14.16756013]
[1748825593904,148.9,157.8,157.79,14.16756013]
[1748825595302,148.9,157.8,157.79,20.50509736]
[1748825596309,148.9,157.8,157.79,6.33753723]
[1748825599994,148.9,157.8,157.79,14.16756013]